[Event "Titled Tuesday Blitz May 4 2021"]
[White "Tomb, Maroun"]
[Black "Tari, Aryan"]
[WhiteFideId "5300398"]
[BlackFideId "1510045"]
[WhiteElo "2566"]
[BlackElo "2957"]
[Result "0-1"]
[Round "04"]
[TimeControl "180+1"]
[Date "2021.05.04"]
[WhiteClock "0:00:42"]
[BlackClock "0:00:32"]

1. e4 {[%clk 0:03:00]}  c6 {[%clk 0:02:56]} 2. Nc3 {[%clk 0:02:59]}  d5 {[%clk 0:02:56]} 3. Nf3 {[%clk 0:02:59]}  dxe4 {[%clk 0:02:55]} 4. Nxe4 {[%clk 0:02:56]}  Nf6 {[%clk 0:02:55]} 5. Qe2 {[%clk 0:02:53]}  Nxe4 {[%clk 0:02:49]} 6. Qxe4 {[%clk 0:02:54]}  Nd7 {[%clk 0:02:49]} 7. Bc4 {[%clk 0:02:53]}  Nf6 {[%clk 0:02:49]} 8. Ne5 {[%clk 0:02:53]}  e6 {[%clk 0:02:49]} 9. Qe2 {[%clk 0:02:53]}  b5 {[%clk 0:02:49]} 10. Bb3 {[%clk 0:02:51]}  Bd6 {[%clk 0:02:48]} 11. d4 {[%clk 0:02:50]}  O-O {[%clk 0:02:44]} 12. O-O {[%clk 0:02:37]}  Qc7 {[%clk 0:02:42]} 13. Bf4 {[%clk 0:02:36]}  Bb7 {[%clk 0:02:39]} 14. Bg3 {[%clk 0:02:27]}  c5 {[%clk 0:02:31]} 15. dxc5 {[%clk 0:02:24]}  Qxc5 {[%clk 0:02:32]} 16. Rad1 {[%clk 0:02:21]}  Rad8 {[%clk 0:02:28]} 17. Rd3 {[%clk 0:02:14]}  Ne4 {[%clk 0:02:20]} 18. Rfd1 {[%clk 0:02:02]}  Qc7 {[%clk 0:01:38]} 19. Nf3 {[%clk 0:01:49]}  Nxg3 {[%clk 0:01:37]} 20. hxg3 {[%clk 0:01:50]}  h6 {[%clk 0:01:17]} 21. c3 {[%clk 0:01:47]}  b4 {[%clk 0:01:00]} 22. Qd2 {[%clk 0:01:36]}  Be7 {[%clk 0:00:51]} 23. cxb4 {[%clk 0:01:35]}  Rxd3 {[%clk 0:00:51]} 24. Qxd3 {[%clk 0:01:35]}  Rd8 {[%clk 0:00:46]} 25. Qc2 {[%clk 0:01:30]}  Rxd1+ {[%clk 0:00:43]} 26. Qxd1 {[%clk 0:01:29]}  Bxb4 {[%clk 0:00:43]} 27. Qd4 {[%clk 0:01:16]}  Bc5 {[%clk 0:00:40]} 28. Qc4 {[%clk 0:01:12]}  Qb6 {[%clk 0:00:36]} 29. Qc2 {[%clk 0:01:09]}  Qd6 {[%clk 0:00:33]} 30. Bc4 {[%clk 0:01:05]}  Bxf3 {[%clk 0:00:32]} 31. gxf3 {[%clk 0:01:01]}  Qxg3+ {[%clk 0:00:32]} 32. Kf1 {[%clk 0:01:02]}  Qxf3 {[%clk 0:00:32]} 33. Bxe6 {[%clk 0:00:42]}  Qh1+ {[%clk 0:00:32]} 34. Ke2 {[%clk 0:00:42]}  Qh5+ {[%clk 0:00:32]} 0-1


[Site "https://www.chess.com"]

[Event "Titled Tuesday Blitz May 4 2021"]
[White "Trost, Edvin"]
[Black "Dobrov, Vladimir"]
[WhiteFideId "1729519"]
[BlackFideId "4136594"]
[WhiteElo "2028"]
[BlackElo "2614"]
[Result "0-1"]
[Round "04"]
[TimeControl "180+1"]
[Date "2021.05.04"]
[WhiteClock "0:00:08"]
[BlackClock "0:00:12"]

1. d4 {[%clk 0:03:00]}  Nf6 {[%clk 0:02:59]} 2. c4 {[%clk 0:03:00]}  e6 {[%clk 0:02:59]} 3. Nc3 {[%clk 0:03:00]}  Bb4 {[%clk 0:02:58]} 4. Bd2 {[%clk 0:03:00]}  b6 {[%clk 0:02:50]} 5. Nf3 {[%clk 0:02:57]}  Bb7 {[%clk 0:02:50]} 6. e3 {[%clk 0:02:57]}  O-O {[%clk 0:02:49]} 7. Bd3 {[%clk 0:02:55]}  c5 {[%clk 0:02:41]} 8. O-O {[%clk 0:02:51]}  cxd4 {[%clk 0:02:41]} 9. Nxd4 {[%clk 0:02:51]}  Nc6 {[%clk 0:02:25]} 10. Re1 {[%clk 0:02:45]}  Ne5 {[%clk 0:02:16]} 11. Bf1 {[%clk 0:02:45]}  Rc8 {[%clk 0:02:13]} 12. Qb3 {[%clk 0:02:40]}  Be7 {[%clk 0:02:05]} 13. Rad1 {[%clk 0:02:37]}  Qc7 {[%clk 0:01:52]} 14. Ncb5 {[%clk 0:02:07]}  Qb8 {[%clk 0:01:51]} 15. Rc1 {[%clk 0:02:08]}  Ne4 {[%clk 0:01:41]} 16. Bb4 {[%clk 0:02:05]}  Bxb4 {[%clk 0:01:38]} 17. Qxb4 {[%clk 0:02:06]}  Ng4 {[%clk 0:01:08]} 18. f4 {[%clk 0:01:54]}  f5 {[%clk 0:00:55]} 19. Rcd1 {[%clk 0:01:45]}  Rf7 {[%clk 0:00:41]} 20. Nf3 {[%clk 0:01:39]}  g5 {[%clk 0:00:20]} 21. Nd6 {[%clk 0:01:12]}  Nxd6 {[%clk 0:00:17]} 22. Qxd6 {[%clk 0:01:13]}  Qxd6 {[%clk 0:00:15]} 23. Rxd6 {[%clk 0:01:14]}  gxf4 {[%clk 0:00:15]} 24. exf4 {[%clk 0:01:15]}  Nf6 {[%clk 0:00:15]} 25. Ng5 {[%clk 0:01:13]}  Rg7 {[%clk 0:00:15]} 26. g3 {[%clk 0:01:10]}  h6 {[%clk 0:00:15]} 27. Nh3 {[%clk 0:01:04]}  Ne4 {[%clk 0:00:16]} 28. Rd4 {[%clk 0:01:04]}  d5 {[%clk 0:00:16]} 29. cxd5 {[%clk 0:01:04]}  Bxd5 {[%clk 0:00:17]} 30. b3 {[%clk 0:01:04]}  Rc2 {[%clk 0:00:17]} 31. Re2 {[%clk 0:01:05]}  Rgc7 {[%clk 0:00:17]} 32. Nf2 {[%clk 0:01:03]}  Rxe2 {[%clk 0:00:17]} 33. Bxe2 {[%clk 0:01:01]}  Rc1+ {[%clk 0:00:17]} 34. Bf1 {[%clk 0:01:01]}  Nc3 {[%clk 0:00:15]} 35. Rd2 {[%clk 0:00:58]}  Ra1 {[%clk 0:00:14]} 36. a4 {[%clk 0:00:57]}  Bxb3 {[%clk 0:00:15]} 37. Rd8+ {[%clk 0:00:49]}  Kg7 {[%clk 0:00:14]} 38. Rd7+ {[%clk 0:00:50]}  Kg6 {[%clk 0:00:14]} 39. Rd3 {[%clk 0:00:51]}  Rxf1+ {[%clk 0:00:13]} 40. Kg2 {[%clk 0:00:48]}  Bd5+ {[%clk 0:00:12]} 41. Kxf1 {[%clk 0:00:43]}  Bc4 {[%clk 0:00:13]} 42. a5 {[%clk 0:00:44]}  Bxd3+ {[%clk 0:00:13]} 43. Nxd3 {[%clk 0:00:45]}  bxa5 {[%clk 0:00:13]} 44. Ne5+ {[%clk 0:00:45]}  Kf6 {[%clk 0:00:13]} 45. Ke1 {[%clk 0:00:46]}  a4 {[%clk 0:00:13]} 46. Kd2 {[%clk 0:00:46]}  Ne4+ {[%clk 0:00:12]} 47. Kc2 {[%clk 0:00:46]}  Nf2 {[%clk 0:00:10]} 48. Kb2 {[%clk 0:00:44]}  Ng4 {[%clk 0:00:09]} 49. Nf3 {[%clk 0:00:44]}  e5 {[%clk 0:00:09]} 50. fxe5+ {[%clk 0:00:45]}  Nxe5 {[%clk 0:00:10]} 51. Nh4 {[%clk 0:00:46]}  Ng4 {[%clk 0:00:10]} 52. h3 {[%clk 0:00:46]}  Nf2 {[%clk 0:00:09]} 53. Ka3 {[%clk 0:00:46]}  Nxh3 {[%clk 0:00:09]} 54. Kxa4 {[%clk 0:00:46]}  Ng5 {[%clk 0:00:10]} 55. Ng2 {[%clk 0:00:24]}  Ne4 {[%clk 0:00:10]} 56. Nf4 {[%clk 0:00:22]}  Nxg3 {[%clk 0:00:10]} 57. Kb5 {[%clk 0:00:23]}  Kg5 {[%clk 0:00:11]} 58. Ne6+ {[%clk 0:00:24]}  Kg4 {[%clk 0:00:11]} 59. Kc4 {[%clk 0:00:24]}  h5 {[%clk 0:00:12]} 60. Kd3 {[%clk 0:00:24]}  h4 {[%clk 0:00:12]} 61. Ke3 {[%clk 0:00:25]}  h3 {[%clk 0:00:13]} 62. Kd4 {[%clk 0:00:05]}  h2 {[%clk 0:00:13]} 63. Ke5 {[%clk 0:00:06]}  h1=Q {[%clk 0:00:13]} 64. Kf6 {[%clk 0:00:07]}  Qh6+ {[%clk 0:00:12]} 65. Kf7 {[%clk 0:00:07]}  Qxe6+ {[%clk 0:00:12]} 66. Kf8 {[%clk 0:00:06]}  f4 {[%clk 0:00:13]} 67. Kg7 {[%clk 0:00:06]}  f3 {[%clk 0:00:13]} 68. Kh8 {[%clk 0:00:07]}  Qd7 {[%clk 0:00:13]} 69. Kg8 {[%clk 0:00:07]}  Nf5 {[%clk 0:00:13]} 70. Kh8 {[%clk 0:00:08]}  Qg7# {[%clk 0:00:12]} 0-1


[Site "https://www.chess.com"]

[Event "Titled Tuesday Blitz May 4 2021"]
[White "Tymrakiewicz, Rafal"]
[Black "Korchmar, Vasiliy"]
[WhiteFideId "1108832"]
[BlackFideId "24131750"]
[WhiteElo "2172"]
[BlackElo "2370"]
[Result "0-1"]
[Round "04"]
[TimeControl "180+1"]
[Date "2021.05.04"]
[WhiteClock "0:01:37"]
[BlackClock "0:00:52"]

1. e4 {[%clk 0:03:00]}  c5 {[%clk 0:03:00]} 2. d4 {[%clk 0:03:00]}  cxd4 {[%clk 0:02:59]} 3. c3 {[%clk 0:03:01]}  dxc3 {[%clk 0:03:00]} 4. Nxc3 {[%clk 0:03:02]}  Nc6 {[%clk 0:03:00]} 5. Nf3 {[%clk 0:03:02]}  d6 {[%clk 0:03:00]} 6. Bc4 {[%clk 0:03:03]}  e6 {[%clk 0:03:00]} 7. O-O {[%clk 0:03:02]}  Nf6 {[%clk 0:03:00]} 8. Qe2 {[%clk 0:03:02]}  a6 {[%clk 0:02:54]} 9. Rd1 {[%clk 0:03:03]}  e5 {[%clk 0:02:54]} 10. Bg5 {[%clk 0:02:59]}  Be7 {[%clk 0:02:47]} 11. Bxf6 {[%clk 0:02:57]}  Bxf6 {[%clk 0:02:45]} 12. Rac1 {[%clk 0:02:58]}  O-O {[%clk 0:02:43]} 13. a3 {[%clk 0:02:56]}  Bg4 {[%clk 0:02:43]} 14. Kh1 {[%clk 0:02:37]}  Nd4 {[%clk 0:02:41]} 15. Qd3 {[%clk 0:02:36]}  Bxf3 {[%clk 0:02:36]} 16. gxf3 {[%clk 0:02:35]}  Bg5 {[%clk 0:02:36]} 17. Rb1 {[%clk 0:02:19]}  Qf6 {[%clk 0:02:27]} 18. Nd5 {[%clk 0:02:18]}  Qxf3+ {[%clk 0:02:26]} 19. Qxf3 {[%clk 0:02:18]}  Nxf3 {[%clk 0:02:27]} 20. Nb6 {[%clk 0:02:17]}  Rad8 {[%clk 0:02:26]} 21. Bd5 {[%clk 0:02:15]}  Kh8 {[%clk 0:02:21]} 22. Rd3 {[%clk 0:02:13]}  Nd4 {[%clk 0:02:18]} 23. Rg1 {[%clk 0:02:11]}  Bf4 {[%clk 0:02:16]} 24. Rh3 {[%clk 0:02:09]}  f5 {[%clk 0:02:10]} 25. Nc4 {[%clk 0:01:55]}  b5 {[%clk 0:02:01]} 26. Ne3 {[%clk 0:01:54]}  fxe4 {[%clk 0:01:17]} 27. Ng2 {[%clk 0:01:47]}  Nf3 {[%clk 0:01:04]} 28. Nxf4 {[%clk 0:01:44]}  Rxf4 {[%clk 0:01:01]} 29. Rg6 {[%clk 0:01:37]}  Rc8 {[%clk 0:00:53]} 30. Rxd6 {[%clk 0:01:37]}  Rc1+ {[%clk 0:00:52]} 0-1


[Site "https://www.chess.com"]

[Event "Titled Tuesday Blitz May 4 2021"]
[White "Unneland, Mathias"]
[Black "Lizlov, Alexey"]
[WhiteFideId "1525581"]
[BlackFideId "4179803"]
[WhiteElo "1975"]
[BlackElo "2272"]
[Result "1-0"]
[Round "04"]
[TimeControl "180+1"]
[Date "2021.05.04"]
[WhiteClock "0:00:34"]
[BlackClock "0:00:04"]

1. d4 {[%clk 0:03:00]}  Nf6 {[%clk 0:02:59]} 2. c4 {[%clk 0:03:00]}  g6 {[%clk 0:03:00]} 3. Nc3 {[%clk 0:03:00]}  Bg7 {[%clk 0:03:00]} 4. e4 {[%clk 0:03:00]}  d6 {[%clk 0:03:01]} 5. Nf3 {[%clk 0:03:00]}  O-O {[%clk 0:03:01]} 6. Be2 {[%clk 0:03:01]}  e5 {[%clk 0:03:02]} 7. O-O {[%clk 0:03:02]}  Nc6 {[%clk 0:03:02]} 8. d5 {[%clk 0:03:02]}  Ne7 {[%clk 0:03:02]} 9. b4 {[%clk 0:03:03]}  a5 {[%clk 0:03:02]} 10. bxa5 {[%clk 0:03:03]}  Rxa5 {[%clk 0:03:01]} 11. a4 {[%clk 0:03:04]}  Nh5 {[%clk 0:03:00]} 12. Re1 {[%clk 0:02:59]}  Nf4 {[%clk 0:02:48]} 13. Bf1 {[%clk 0:02:58]}  f5 {[%clk 0:02:48]} 14. Bd2 {[%clk 0:02:53]}  h6 {[%clk 0:02:33]} 15. Ra3 {[%clk 0:02:48]}  g5 {[%clk 0:02:29]} 16. exf5 {[%clk 0:02:41]}  Nxf5 {[%clk 0:02:14]} 17. Ne4 {[%clk 0:02:41]}  Ra8 {[%clk 0:02:08]} 18. c5 {[%clk 0:02:14]}  g4 {[%clk 0:01:56]} 19. Bxf4 {[%clk 0:02:04]}  exf4 {[%clk 0:01:31]} 20. Nfd2 {[%clk 0:02:04]}  Nh4 {[%clk 0:01:10]} 21. cxd6 {[%clk 0:01:48]}  cxd6 {[%clk 0:01:09]} 22. g3 {[%clk 0:01:45]}  fxg3 {[%clk 0:01:02]} 23. hxg3 {[%clk 0:01:45]}  Ng6 {[%clk 0:00:51]} 24. Nc4 {[%clk 0:01:22]}  Ra6 {[%clk 0:00:43]} 25. Be2 {[%clk 0:01:10]}  h5 {[%clk 0:00:24]} 26. a5 {[%clk 0:01:02]}  Bf5 {[%clk 0:00:20]} 27. Bd3 {[%clk 0:00:51]}  Re8 {[%clk 0:00:13]} 28. Nexd6 {[%clk 0:00:44]}  Rxe1+ {[%clk 0:00:12]} 29. Qxe1 {[%clk 0:00:44]}  Bxd3 {[%clk 0:00:11]} 30. Qe6+ {[%clk 0:00:43]}  Kh7 {[%clk 0:00:09]} 31. Rxd3 {[%clk 0:00:43]}  Qg5 {[%clk 0:00:05]} 32. Qf5 {[%clk 0:00:34]}  Qc1+ {[%clk 0:00:04]} 33. Kg2 {[%clk 0:00:34]} 1-0


[Site "https://www.chess.com"]

[Event "Titled Tuesday Blitz May 4 2021"]
[White "Vargas, Gabriela"]
[Black "Berezin, Viktor"]
[WhiteFideId "3700860"]
[BlackFideId "14107872"]
[WhiteElo "2116"]
[BlackElo "2310"]
[Result "0-1"]
[Round "04"]
[TimeControl "180+1"]
[Date "2021.05.04"]
[WhiteClock "0:00:28"]
[BlackClock "0:01:27"]

1. d4 {[%clk 0:03:00]}  Nf6 {[%clk 0:02:59]} 2. Nf3 {[%clk 0:02:59]}  e6 {[%clk 0:02:57]} 3. Bg5 {[%clk 0:02:59]}  c5 {[%clk 0:02:56]} 4. c3 {[%clk 0:02:58]}  Nc6 {[%clk 0:02:55]} 5. e3 {[%clk 0:02:59]}  d5 {[%clk 0:02:55]} 6. Nbd2 {[%clk 0:02:58]}  h6 {[%clk 0:02:55]} 7. Bh4 {[%clk 0:02:58]}  Be7 {[%clk 0:02:56]} 8. Bd3 {[%clk 0:02:58]}  O-O {[%clk 0:02:53]} 9. O-O {[%clk 0:02:59]}  a6 {[%clk 0:02:48]} 10. Ne5 {[%clk 0:02:59]}  Nd7 {[%clk 0:02:45]} 11. Bxe7 {[%clk 0:02:58]}  Qxe7 {[%clk 0:02:42]} 12. f4 {[%clk 0:02:59]}  Ndxe5 {[%clk 0:02:35]} 13. fxe5 {[%clk 0:02:59]}  b5 {[%clk 0:02:30]} 14. Qh5 {[%clk 0:02:56]}  Bd7 {[%clk 0:02:21]} 15. Rf3 {[%clk 0:02:46]}  f5 {[%clk 0:02:19]} 16. exf6 {[%clk 0:02:39]}  Rxf6 {[%clk 0:02:18]} 17. Raf1 {[%clk 0:02:38]}  Raf8 {[%clk 0:02:17]} 18. Rg3 {[%clk 0:02:27]}  e5 {[%clk 0:02:05]} 19. dxe5 {[%clk 0:01:35]}  Nxe5 {[%clk 0:02:04]} 20. Be2 {[%clk 0:01:35]}  Be8 {[%clk 0:01:49]} 21. Rxf6 {[%clk 0:01:07]}  Bxh5 {[%clk 0:01:41]} 22. Rxf8+ {[%clk 0:01:07]}  Qxf8 {[%clk 0:01:38]} 23. Bxh5 {[%clk 0:01:07]}  Qf5 {[%clk 0:01:38]} 24. Bf3 {[%clk 0:00:35]}  Nxf3+ {[%clk 0:01:33]} 25. Rxf3 {[%clk 0:00:34]}  Qd3 {[%clk 0:01:31]} 26. Nb3 {[%clk 0:00:28]}  Qb1+ {[%clk 0:01:27]} 27. Kf2 {[%clk 0:00:27]}  Qxb2+ {[%clk 0:01:27]} 28. Kg3 {[%clk 0:00:28]}  Qxc3 {[%clk 0:01:27]} 0-1


[Site "https://www.chess.com"]

[Event "Titled Tuesday Blitz May 4 2021"]
[White "Vega Gutierrez, Sabrina"]
[Black "Dudzinski, Pawel"]
[WhiteFideId "2219026"]
[BlackFideId "1117890"]
[WhiteElo "2281"]
[BlackElo "2193"]
[Result "0-1"]
[Round "04"]
[TimeControl "180+1"]
[Date "2021.05.04"]
[WhiteClock "0:00:17"]
[BlackClock "0:00:49"]

1. e4 {[%clk 0:03:00]}  c6 {[%clk 0:02:59]} 2. d4 {[%clk 0:02:59]}  d5 {[%clk 0:03:00]} 3. e5 {[%clk 0:02:59]}  c5 {[%clk 0:03:00]} 4. dxc5 {[%clk 0:02:58]}  Nc6 {[%clk 0:03:00]} 5. f4 {[%clk 0:02:31]}  Bf5 {[%clk 0:02:54]} 6. Nf3 {[%clk 0:02:29]}  e6 {[%clk 0:02:54]} 7. Be3 {[%clk 0:02:29]}  Bg4 {[%clk 0:02:36]} 8. Be2 {[%clk 0:02:26]}  a5 {[%clk 0:02:24]} 9. Nc3 {[%clk 0:02:23]}  Nge7 {[%clk 0:02:20]} 10. Nb5 {[%clk 0:02:22]}  Nf5 {[%clk 0:02:15]} 11. Bf2 {[%clk 0:02:20]}  a4 {[%clk 0:02:12]} 12. O-O {[%clk 0:02:18]}  Qa5 {[%clk 0:02:01]} 13. Nd6+ {[%clk 0:02:15]}  Bxd6 {[%clk 0:01:44]} 14. cxd6 {[%clk 0:02:13]}  O-O {[%clk 0:01:44]} 15. h3 {[%clk 0:02:03]}  Bxf3 {[%clk 0:01:43]} 16. Bxf3 {[%clk 0:02:02]}  Qb4 {[%clk 0:01:40]} 17. Rb1 {[%clk 0:01:46]}  Qxf4 {[%clk 0:01:40]} 18. Re1 {[%clk 0:00:46]}  Nxe5 {[%clk 0:01:39]} 19. Bc5 {[%clk 0:00:43]}  Nxf3+ {[%clk 0:01:35]} 20. Qxf3 {[%clk 0:00:42]}  Qxf3 {[%clk 0:01:34]} 21. gxf3 {[%clk 0:00:43]}  Rac8 {[%clk 0:01:05]} 22. Ba3 {[%clk 0:00:38]}  Rfd8 {[%clk 0:01:03]} 23. b3 {[%clk 0:00:33]}  Rxc2 {[%clk 0:00:58]} 24. bxa4 {[%clk 0:00:32]}  Rxa2 {[%clk 0:00:56]} 25. Bc5 {[%clk 0:00:29]}  Nxd6 {[%clk 0:00:48]} 26. Bxd6 {[%clk 0:00:16]}  Rxd6 {[%clk 0:00:49]} 27. Rb6 {[%clk 0:00:17]}  Rxb6 {[%clk 0:00:49]} 0-1


[Site "https://www.chess.com"]

[Event "Titled Tuesday Blitz May 4 2021"]
[White "Villegas, Pierre"]
[Black "Jobava, Baadur"]
[WhiteFideId "654183"]
[BlackFideId "13601520"]
[WhiteElo "2562"]
[BlackElo "2893"]
[Result "0-1"]
[Round "04"]
[TimeControl "180+1"]
[Date "2021.05.04"]
[WhiteClock "0:00:02"]
[BlackClock "0:00:10"]

1. d4 {[%clk 0:03:00]}  d5 {[%clk 0:02:56]} 2. c4 {[%clk 0:02:58]}  c6 {[%clk 0:02:55]} 3. Nf3 {[%clk 0:02:57]}  Nf6 {[%clk 0:02:54]} 4. Qc2 {[%clk 0:02:57]}  Na6 {[%clk 0:02:52]} 5. a3 {[%clk 0:02:47]}  Nc7 {[%clk 0:02:50]} 6. Bf4 {[%clk 0:02:36]}  g6 {[%clk 0:02:44]} 7. e3 {[%clk 0:02:34]}  Bg7 {[%clk 0:02:43]} 8. Nc3 {[%clk 0:02:33]}  O-O {[%clk 0:02:42]} 9. Be2 {[%clk 0:02:29]}  dxc4 {[%clk 0:02:39]} 10. Bxc4 {[%clk 0:02:27]}  Ncd5 {[%clk 0:02:40]} 11. Be5 {[%clk 0:02:25]}  Bg4 {[%clk 0:02:36]} 12. Be2 {[%clk 0:02:14]}  Rc8 {[%clk 0:02:32]} 13. h3 {[%clk 0:02:09]}  Bf5 {[%clk 0:02:31]} 14. Qb3 {[%clk 0:02:05]}  Qb6 {[%clk 0:02:22]} 15. Qxb6 {[%clk 0:01:55]}  axb6 {[%clk 0:02:23]} 16. g4 {[%clk 0:01:47]}  Be6 {[%clk 0:02:12]} 17. Rc1 {[%clk 0:01:26]}  Rfd8 {[%clk 0:02:09]} 18. Ng5 {[%clk 0:00:49]}  Bd7 {[%clk 0:02:06]} 19. Bf3 {[%clk 0:00:49]}  Be8 {[%clk 0:02:02]} 20. Nxd5 {[%clk 0:00:43]}  Nxd5 {[%clk 0:01:59]} 21. Bxg7 {[%clk 0:00:43]}  Kxg7 {[%clk 0:02:00]} 22. Bxd5 {[%clk 0:00:31]}  Rxd5 {[%clk 0:01:58]} 23. Nf3 {[%clk 0:00:32]}  f6 {[%clk 0:01:57]} 24. Ke2 {[%clk 0:00:27]}  g5 {[%clk 0:01:48]} 25. Rhd1 {[%clk 0:00:22]}  h5 {[%clk 0:01:45]} 26. Nd2 {[%clk 0:00:20]}  hxg4 {[%clk 0:01:45]} 27. hxg4 {[%clk 0:00:20]}  b5 {[%clk 0:01:40]} 28. Ne4 {[%clk 0:00:20]}  b6 {[%clk 0:01:36]} 29. b4 {[%clk 0:00:12]}  Bg6 {[%clk 0:01:33]} 30. f3 {[%clk 0:00:08]}  Rdd8 {[%clk 0:01:28]} 31. Rc3 {[%clk 0:00:07]}  Bf7 {[%clk 0:01:23]} 32. Rdc1 {[%clk 0:00:06]}  Bc4+ {[%clk 0:01:23]} 33. Kf2 {[%clk 0:00:06]}  Rh8 {[%clk 0:01:22]} 34. Kg2 {[%clk 0:00:05]}  Rh4 {[%clk 0:01:15]} 35. Rh1 {[%clk 0:00:04]}  Rxh1 {[%clk 0:01:12]} 36. Kxh1 {[%clk 0:00:05]}  Kg6 {[%clk 0:01:02]} 37. Kg2 {[%clk 0:00:05]}  Be6 {[%clk 0:00:52]} 38. Nd2 {[%clk 0:00:04]}  Bd7 {[%clk 0:00:52]} 39. Nf1 {[%clk 0:00:03]}  Ra8 {[%clk 0:00:50]} 40. Ng3 {[%clk 0:00:03]}  e6 {[%clk 0:00:50]} 41. e4 {[%clk 0:00:02]}  Kf7 {[%clk 0:00:48]} 42. Nf1 {[%clk 0:00:02]}  Ke7 {[%clk 0:00:48]} 43. Ne3 {[%clk 0:00:02]}  Kd6 {[%clk 0:00:48]} 44. Kf2 {[%clk 0:00:02]}  e5 {[%clk 0:00:46]} 45. d5 {[%clk 0:00:02]}  c5 {[%clk 0:00:46]} 46. bxc5+ {[%clk 0:00:01]}  bxc5 {[%clk 0:00:47]} 47. Rb3 {[%clk 0:00:02]}  c4 {[%clk 0:00:46]} 48. Rc3 {[%clk 0:00:02]}  Kc5 {[%clk 0:00:46]} 49. Nc2 {[%clk 0:00:02]}  Rh8 {[%clk 0:00:20]} 50. Ke3 {[%clk 0:00:02]}  Rh1 {[%clk 0:00:19]} 51. Nb4 {[%clk 0:00:03]}  Re1+ {[%clk 0:00:16]} 52. Kd2 {[%clk 0:00:03]}  Ra1 {[%clk 0:00:14]} 53. Nd3+ {[%clk 0:00:02]}  Kd4 {[%clk 0:00:13]} 54. Nb2 {[%clk 0:00:02]}  Ra2 {[%clk 0:00:13]} 55. Kc2 {[%clk 0:00:02]}  Ra1 {[%clk 0:00:11]} 56. Kd2 {[%clk 0:00:02]}  Rf1 {[%clk 0:00:10]} 57. Nd1 {[%clk 0:00:02]}  Rxd1+ {[%clk 0:00:10]} 0-1


[Site "https://www.chess.com"]

[Event "Titled Tuesday Blitz May 4 2021"]
[White "Voege, Tobias"]
[Black "Sevian, Samuel"]
[WhiteFideId "1270513"]
[BlackFideId "2040506"]
[WhiteElo "2283"]
[BlackElo "2945"]
[Result "1/2-1/2"]
[Round "04"]
[TimeControl "180+1"]
[Date "2021.05.04"]
[WhiteClock "0:00:01"]
[BlackClock "0:00:03"]

1. d4 {[%clk 0:03:00]}  Nf6 {[%clk 0:02:51]} 2. c4 {[%clk 0:02:59]}  g6 {[%clk 0:02:52]} 3. Nc3 {[%clk 0:02:59]}  Bg7 {[%clk 0:02:52]} 4. Nf3 {[%clk 0:02:59]}  O-O {[%clk 0:02:53]} 5. Bg5 {[%clk 0:02:59]}  d6 {[%clk 0:02:54]} 6. e3 {[%clk 0:02:59]}  Nbd7 {[%clk 0:02:55]} 7. Be2 {[%clk 0:02:59]}  b6 {[%clk 0:02:55]} 8. O-O {[%clk 0:02:58]}  Bb7 {[%clk 0:02:56]} 9. Nd2 {[%clk 0:02:57]}  h6 {[%clk 0:02:56]} 10. Bh4 {[%clk 0:02:57]}  a6 {[%clk 0:02:57]} 11. Qc2 {[%clk 0:02:56]}  e6 {[%clk 0:02:57]} 12. f4 {[%clk 0:02:56]}  Rc8 {[%clk 0:02:55]} 13. a4 {[%clk 0:02:53]}  c5 {[%clk 0:02:55]} 14. d5 {[%clk 0:02:50]}  exd5 {[%clk 0:02:55]} 15. cxd5 {[%clk 0:02:47]}  Re8 {[%clk 0:02:47]} 16. e4 {[%clk 0:02:46]}  Qc7 {[%clk 0:01:36]} 17. Rae1 {[%clk 0:02:31]}  Nh7 {[%clk 0:01:35]} 18. Nc4 {[%clk 0:02:22]}  Bd4+ {[%clk 0:01:19]} 19. Kh1 {[%clk 0:02:11]}  g5 {[%clk 0:01:11]} 20. Bg3 {[%clk 0:02:00]}  gxf4 {[%clk 0:01:11]} 21. Bxf4 {[%clk 0:02:01]}  Ne5 {[%clk 0:01:12]} 22. Bxh6 {[%clk 0:01:48]}  Nxc4 {[%clk 0:00:33]} 23. Bxc4 {[%clk 0:01:49]}  Re5 {[%clk 0:00:33]} 24. Qd3 {[%clk 0:01:25]}  Kh8 {[%clk 0:00:33]} 25. Bxa6 {[%clk 0:01:01]}  Bxa6 {[%clk 0:00:34]} 26. Qxa6 {[%clk 0:01:01]}  Rg8 {[%clk 0:00:30]} 27. Qd3 {[%clk 0:00:54]}  Qe7 {[%clk 0:00:28]} 28. Bf4 {[%clk 0:00:51]}  Qh4 {[%clk 0:00:25]} 29. Bxe5+ {[%clk 0:00:43]}  Bxe5 {[%clk 0:00:25]} 30. Qh3 {[%clk 0:00:43]}  Qxh3 {[%clk 0:00:24]} 31. gxh3 {[%clk 0:00:44]}  Ng5 {[%clk 0:00:25]} 32. Rf5 {[%clk 0:00:39]}  f6 {[%clk 0:00:23]} 33. h4 {[%clk 0:00:34]}  Nh3 {[%clk 0:00:23]} 34. Ref1 {[%clk 0:00:30]}  Rg4 {[%clk 0:00:19]} 35. R5f3 {[%clk 0:00:25]}  Rxh4 {[%clk 0:00:18]} 36. Kg2 {[%clk 0:00:16]}  Ng5 {[%clk 0:00:18]} 37. Rg3 {[%clk 0:00:13]}  Kg7 {[%clk 0:00:14]} 38. Rf5 {[%clk 0:00:12]}  Bxg3 {[%clk 0:00:13]} 39. hxg3 {[%clk 0:00:13]}  Rh8 {[%clk 0:00:14]} 40. Nb5 {[%clk 0:00:12]}  Nxe4 {[%clk 0:00:13]} 41. Rf4 {[%clk 0:00:12]}  Re8 {[%clk 0:00:12]} 42. Kf3 {[%clk 0:00:12]}  Nd2+ {[%clk 0:00:11]} 43. Kg4 {[%clk 0:00:11]}  Ne4 {[%clk 0:00:12]} 44. Kf3 {[%clk 0:00:11]}  Ng5+ {[%clk 0:00:12]} 45. Kg4 {[%clk 0:00:11]}  Re5 {[%clk 0:00:13]} 46. Nxd6 {[%clk 0:00:10]}  Rxd5 {[%clk 0:00:11]} 47. Ne8+ {[%clk 0:00:10]}  Kg6 {[%clk 0:00:09]} 48. Rxf6+ {[%clk 0:00:09]}  Kh7 {[%clk 0:00:09]} 49. Rf4 {[%clk 0:00:09]}  Re5 {[%clk 0:00:07]} 50. Nf6+ {[%clk 0:00:10]}  Kg6 {[%clk 0:00:08]} 51. Nd7 {[%clk 0:00:09]}  Re2 {[%clk 0:00:07]} 52. Rf6+ {[%clk 0:00:07]}  Kg7 {[%clk 0:00:07]} 53. Kxg5 {[%clk 0:00:08]}  Rxb2 {[%clk 0:00:07]} 54. Rxb6 {[%clk 0:00:07]}  Rc2 {[%clk 0:00:06]} 55. Rc6 {[%clk 0:00:06]}  c4 {[%clk 0:00:06]} 56. Ne5 {[%clk 0:00:06]}  c3 {[%clk 0:00:06]} 57. Rc7+ {[%clk 0:00:07]}  Kf8 {[%clk 0:00:07]} 58. Kf6 {[%clk 0:00:05]}  Kg8 {[%clk 0:00:06]} 59. Kg6 {[%clk 0:00:04]}  Kf8 {[%clk 0:00:06]} 60. Kf6 {[%clk 0:00:04]}  Kg8 {[%clk 0:00:06]} 61. Ke6 {[%clk 0:00:05]}  Rc1 {[%clk 0:00:05]} 62. g4 {[%clk 0:00:05]}  c2 {[%clk 0:00:05]} 63. a5 {[%clk 0:00:05]}  Ra1 {[%clk 0:00:03]} 64. Rxc2 {[%clk 0:00:05]}  Rxa5 {[%clk 0:00:04]} 65. Rc6 {[%clk 0:00:05]}  Kg7 {[%clk 0:00:04]} 66. g5 {[%clk 0:00:05]}  Ra7 {[%clk 0:00:04]} 67. Rd6 {[%clk 0:00:04]}  Ra2 {[%clk 0:00:04]} 68. Rd7+ {[%clk 0:00:04]}  Kf8 {[%clk 0:00:04]} 69. g6 {[%clk 0:00:04]}  Rg2 {[%clk 0:00:04]} 70. Rd8+ {[%clk 0:00:02]}  Kg7 {[%clk 0:00:04]} 71. Rd7+ {[%clk 0:00:03]}  Kg8 {[%clk 0:00:04]} 72. Rf7 {[%clk 0:00:03]}  Rxg6+ {[%clk 0:00:03]} 73. Nxg6 {[%clk 0:00:01]} 1/2-1/2


[Site "https://www.chess.com"]